bitfinex/quotes_SOLUSD_20240714
["timestamp","ask_amount","ask_price","bid_price","bid_amount"]
[1720992745479,1.01006527,147.45,147.36,10.8657517]
[1720992745480,6.3725,147.47,147.43,10.0]
[1720992745802,1.01006527,147.46,147.42,10.0]
[1720992745986,7.23326527,147.52,147.48,10.0]
[1720992746386,6.2232,147.52,147.49,45.0]
[1720992746593,6.2232,147.56,147.49,45.0]
[1720992746900,7.23326527,147.56,147.5,21.35573282]
[1720992747111,6.2232,147.56,147.53,10.0]
[1720992747275,6.2232,147.56,147.54,45.0]
[1720992747475,6.2232,147.61,147.54,45.0]
[1720992747700,1.01006527,147.6,147.55,10.0]
[1720992747907,1.01006527,147.6,147.56,45.0]
[1720992748579,7.23326527,147.61,147.56,45.0]
[1720992748779,1.01006527,147.62,147.57,20.0]
[1720992749095,1.01006527,147.65,147.58,45.0]
[1720992749278,1.01006527,147.64,147.58,45.0]
[1720992750310,1.01006527,147.64,147.59,10.0]
[1720992750486,6.2232,147.66,147.61,10.0]
[1720992750686,6.2232,147.66,147.62,45.0]
[1720992751402,1.01006527,147.65,147.62,45.0]
[1720992751579,6.2232,147.66,147.62,45.0]
[1720992752074,1.01006527,147.65,147.62,45.0]
[1720992752815,1.01006527,147.68,147.63,10.0]
[1720992753024,1.01006527,147.71,147.64,45.0]
[1720992753219,1.01006527,147.7,147.64,45.0]
[1720992753716,1.01006527,147.7,147.65,10.0]
[1720992753911,1.01006527,147.7,147.66,45.0]
[1720992754800,1.01006527,147.71,147.67,10.0]
[1720992754997,6.2267,147.72,147.68,45.0]
[1720992756721,1.01006527,147.74,147.68,45.0]
[1720992757024,1.01006527,147.73,147.69,10.0]
[1720992757221,1.01006527,147.73,147.68,45.0]
[1720992757410,1.01006527,147.73,147.67,10.0]
[1720992757610,1.01006527,147.73,147.66,10.0]
[1720992758720,6.2748,147.76,147.68,10.0]
[1720992758921,6.2748,147.76,147.67,11.35411704]
[1720992758922,1.01006527,147.75,147.7,10.0]
[1720992759096,1.01006527,147.8,147.7,20.0]
[1720992759292,1.01006527,147.79,147.7,20.0]
[1720992759627,1.01006527,147.79,147.71,55.0]
[1720992760143,1.01006527,147.79,147.71,45.0]
[1720992761230,1.01006527,147.78,147.72,10.0]
[1720992761415,1.01006527,147.78,147.73,45.0]
[1720992761623,1.01006527,147.78,147.72,10.0]
[1720992762514,1.01006527,147.8,147.72,10.0]
[1720992762827,1.01006527,147.79,147.72,10.0]
[1720992763726,1.01006527,147.78,147.72,10.0]
[1720992763930,1.01006527,147.8,147.72,10.0]
[1720992764235,1.01006527,147.85,147.76,20.0]
[1720992764533,1.01006527,147.85,147.78,10.0]
[1720992767113,1.01006527,147.85,147.79,45.0]
[1720992767814,1.01006527,147.84,147.78,10.0]
[1720992768032,1.01006527,147.86,147.78,10.0]
[1720992768337,1.01006527,147.85,147.78,10.0]
[1720992770138,1.01006527,147.85,147.73,10.0]
[1720992770343,1.01006527,147.85,147.71,10.0]
[1720992770513,1.01006527,147.85,147.71,20.0]
[1720992771919,1.01006527,147.85,147.73,20.0]
[1720992772130,1.01006527,147.85,147.73,10.0]
[1720992772416,22.4115,147.84,147.73,10.0]
[1720992772629,66.01006527,147.83,147.73,10.0]
[1720992772815,1.01006527,147.82,147.73,10.0]
[1720992774142,46.01006527,147.82,147.71,10.0]
[1720992774432,20.0,147.81,147.69,10.0]
[1720992774629,46.01006527,147.8,147.69,10.0]
[1720992774937,1.01006527,147.79,147.69,20.0]
[1720992775240,21.01006527,147.79,147.69,20.0]
[1720992775424,21.01006527,147.79,147.69,10.0]
[1720992775736,6.3531,147.78,147.69,10.0]
[1720992776036,1.01006527,147.77,147.7,20.0]
[1720992776236,1.01006527,147.76,147.7,20.0]
[1720992776611,1.01006527,147.76,147.69,10.0]
[1720992776807,1.01006527,147.76,147.67,10.0]
[1720992777046,1.01006527,147.76,147.69,10.0]
[1720992777220,1.01006527,147.76,147.63,20.0]
[1720992777221,15.1096,147.75,147.63,20.0]
[1720992777419,15.1096,147.75,147.66,10.0]
[1720992777420,1.01006527,147.74,147.66,10.0]
[1720992777618,6.3531,147.72,147.62,10.0]
[1720992777821,1.01006527,147.71,147.62,10.0]
[1720992778027,1.01006527,147.7,147.62,10.0]
[1720992779037,1.01006527,147.7,147.63,65.0]
[1720992780331,1.01006527,147.7,147.63,45.0]
[1720992781420,1.01006527,147.7,147.62,10.0]
[1720992781621,1.01006527,147.7,147.63,45.0]
[1720992783457,1.01006527,147.7,147.62,10.0]
[1720992783627,6.3531,147.72,147.65,20.0]
[1720992783821,1.01006527,147.71,147.67,10.0]
[1720992785250,6.3531,147.72,147.67,10.0]
[1720992785434,6.3531,147.72,147.69,10.0]
[1720992786359,6.3531,147.72,147.66,10.0]
[1720992786572,6.3531,147.72,147.67,45.0]
[1720992786854,6.3531,147.72,147.67,46.35400671]
[1720992787352,6.3531,147.72,147.68,11.35404325]
[1720992787541,6.3531,147.72,147.69,45.0]
[1720992787743,15.1096,147.75,147.69,45.0]
[1720992787744,15.1096,147.75,147.7,1.35391073]
[1720992787941,16.11966527,147.75,147.7,1.35391073]
[1720992788140,16.11966527,147.75,147.69,45.0]
[1720992788354,6.3531,147.81,147.7,40.0]
[1720992788548,1.01006527,147.8,147.71,45.0]
[1720992788733,1.01006527,147.79,147.71,45.0]
[1720992789055,1.01006527,147.79,147.72,10.0]
[1720992790140,1.01006527,147.78,147.73,45.0]
[1720992790458,1.01006527,147.8,147.73,55.0]
[1720992790761,1.01006527,147.8,147.74,20.0]
[1720992790936,22.47276527,147.79,147.65,10.0]
[1720992791140,22.47276527,147.79,147.68,20.0]
[1720992791341,22.47276527,147.79,147.68,10.0]
[1720992791551,22.47276527,147.79,147.7,10.0]
[1720992792072,22.47276527,147.79,147.68,10.0]
[1720992792236,45.0,147.78,147.69,10.0]
[1720992792438,1.01006527,147.77,147.69,10.0]
[1720992792664,1.01006527,147.76,147.69,10.0]
[1720992793237,1.01006527,147.76,147.68,10.0]
[1720992794759,1.01006527,147.76,147.61,17.04449783]
[1720992794760,6.418,147.74,147.61,17.04449783]
[1720992794966,17.48916527,147.75,147.59,10.0]
[1720992794967,6.418,147.72,147.59,10.0]
[1720992795134,23.31669883,147.71,147.59,10.0]
[1720992795335,1.01006527,147.7,147.59,10.0]
[1720992795645,16.4791,147.69,147.57,17.04920296]
[1720992795849,16.4791,147.69,147.57,27.04920296]
[1720992795850,66.01006527,147.68,147.57,27.04920296]
[1720992796066,1.01006527,147.67,147.57,27.04920296]
[1720992796271,1.01006527,147.67,147.59,10.0]
[1720992797238,1.01006527,147.67,147.57,17.04920296]
[1720992797562,1.01006527,147.67,147.59,10.0]
[1720992797954,1.01006527,147.67,147.57,17.04920296]
[1720992798162,65.0,147.68,147.57,7.04920296]
[1720992798163,24.37,147.64,147.57,7.04920296]
[1720992798353,24.37,147.64,147.54,10.0]
[1720992798354,1.01006527,147.63,147.52,10.0]
[1720992798539,1.01006527,147.63,147.56,10.0]
[1720992799057,1.01006527,147.63,147.53,17.05445688]
[1720992799270,1.01006527,147.65,147.55,10.0]
[1720992799438,1.01006527,147.64,147.53,17.05445688]
[1720992799646,1.01006527,147.64,147.53,7.05445688]
[1720992799844,3.29633626,147.64,147.53,17.05445688]
[1720992800054,48.29633626,147.64,147.53,17.05445688]
[1720992801585,3.29633626,147.64,147.56,10.0]
[1720992801753,3.29633626,147.64,147.54,55.0]
[1720992802144,1.01006527,147.64,147.56,10.0]
[1720992802353,1.01006527,147.65,147.56,10.0]
[1720992802668,1.01006527,147.64,147.56,10.0]
[1720992802970,1.01006527,147.64,147.54,55.0]
[1720992803147,1.01006527,147.64,147.55,20.0]
[1720992803348,1.01006527,147.64,147.56,45.0]
[1720992803665,1.01006527,147.65,147.56,45.0]
[1720992803856,1.01006527,147.64,147.56,55.0]
[1720992804060,1.01006527,147.64,147.56,45.0]
[1720992804654,1.01006527,147.64,147.56,55.0]
[1720992804856,1.01006527,147.65,147.56,55.0]
[1720992805058,1.01006527,147.64,147.56,45.0]
[1720992805363,1.01006527,147.64,147.56,55.0]
[1720992806168,1.01006527,147.65,147.56,55.0]
[1720992806353,1.01006527,147.64,147.56,55.0]
[1720992806754,1.01006527,147.64,147.56,65.0]
[1720992806963,1.01006527,147.64,147.55,20.0]
[1720992807162,1.01006527,147.64,147.56,10.0]
[1720992807371,1.01006527,147.63,147.55,30.0]
[1720992807571,2.28627099,147.63,147.46,10.0]
[1720992807867,24.37,147.59,147.46,10.0]
[1720992808061,68.29633626,147.58,147.46,10.0]
[1720992808267,3.28630705,147.57,147.46,10.0]
[1720992808566,28.41692984,147.64,147.52,10.0]
[1720992808567,1.01006527,147.62,147.52,10.0]
[1720992808874,1.01006527,147.62,147.54,10.0]
[1720992809276,1.01006527,147.62,147.52,20.0]
[1720992809472,1.01006527,147.62,147.54,10.0]
[1720992809951,1.01006527,147.62,147.53,45.0]
[1720992810272,1.01006527,147.62,147.53,55.0]
[1720992810472,1.01006527,147.62,147.56,10.0]
[1720992810657,1.01006527,147.63,147.56,10.0]
[1720992810854,1.01006527,147.63,147.36,6.97482293]
[1720992810855,27.64637789,147.63,147.47,10.0]
[1720992811170,27.64637789,147.63,147.51,10.0]
[1720992811463,27.64637789,147.63,147.49,10.0]
[1720992811770,27.64637789,147.63,147.51,10.0]
[1720992811959,67.26631262,147.62,147.51,10.0]
[1720992812155,1.01006527,147.61,147.51,10.0]
[1720992812468,1.01006527,147.6,147.49,10.0]
[1720992812671,1.01006527,147.6,147.5,45.0]
[1720992814060,21.01006527,147.6,147.5,45.0]
[1720992814670,21.01006527,147.6,147.52,10.0]
[1720992814966,45.0,147.59,147.48,10.0]
[1720992815165,1.01006527,147.58,147.49,45.0]
[1720992815349,1.01006527,147.57,147.48,10.0]
[1720992818154,1.01006527,147.58,147.51,10.0]
[1720992818484,1.01006527,147.61,147.52,1.35539561]
[1720992818779,1.01006527,147.6,147.52,1.35539561]
[1720992818972,1.01006527,147.6,147.51,10.0]
[1720992819576,2.26631262,147.62,147.53,10.0]
[1720992819881,1.01006527,147.61,147.53,10.0]
[1720992820175,8.46130584,147.69,147.45,10.0]
[1720992820176,42.9928,147.59,147.45,10.0]
[1720992820376,3.27637789,147.58,147.45,10.0]
[1720992820582,3.27637789,147.57,147.45,10.0]
[1720992821377,2.2564825,147.56,147.43,20.0]
[1720992821677,1.01006527,147.55,147.43,20.0]
[1720992821973,1.01006527,147.54,147.43,20.0]
[1720992822481,1.01006527,147.54,147.45,10.0]
[1720992823174,1.01006527,147.54,147.41,10.0]
[1720992823175,3.2568157,147.54,147.41,10.0]
[1720992823360,2.24675043,147.53,147.43,10.0]
[1720992823673,1.01006527,147.52,147.43,10.0]
[1720992824088,66.01006527,147.52,147.43,10.0]
[1720992824386,46.01006527,147.52,147.43,10.0]
[1720992824676,20.0,147.51,147.43,10.0]
[1720992824883,1.01006527,147.5,147.43,10.0]
[1720992826379,1.01006527,147.5,147.41,10.0]
[1720992827986,46.01006527,147.5,147.43,10.0]
[1720992828379,46.01006527,147.5,147.41,10.0]
[1720992828576,46.01006527,147.5,147.43,10.0]
[1720992829075,1.01006527,147.5,147.43,20.0]
[1720992829275,1.01006527,147.5,147.41,10.0]
[1720992829488,1.01006527,147.52,147.43,10.0]
[1720992829780,1.01006527,147.51,147.43,20.0]
[1720992829992,1.01006527,147.51,147.43,10.0]
[1720992831502,1.01006527,147.51,147.43,20.0]
[1720992834285,1.01006527,147.51,147.43,10.0]
[1720992834982,46.01006527,147.51,147.43,10.0]
[1720992836109,1.01006527,147.51,147.43,10.0]
[1720992836484,1.01006527,147.5,147.43,10.0]
[1720992836686,21.01006527,147.51,147.43,10.0]
[1720992836888,1.01006527,147.51,147.43,10.0]
[1720992837694,22.24675043,147.53,147.43,10.0]
[1720992837695,1.01006527,147.52,147.43,10.0]
[1720992837897,1.01006527,147.51,147.43,10.0]
[1720992838391,21.01006527,147.51,147.43,10.0]
[1720992840113,21.01006527,147.51,147.44,11.35618009]
[1720992840501,1.01006527,147.5,147.44,10.0]
[1720992840709,1.01006527,147.52,147.43,10.0]
[1720992841018,1.01006527,147.51,147.43,10.0]
[1720992841410,21.01006527,147.51,147.43,10.0]
[1720992842016,21.01006527,147.51,147.44,1.35613117]
[1720992842410,21.01006527,147.51,147.43,10.0]
[1720992842636,1.01006527,147.51,147.43,10.0]
[1720992842941,1.01006527,147.52,147.43,10.0]
[1720992843109,1.01006527,147.51,147.43,10.0]
[1720992843820,1.01006527,147.51,147.45,10.0]
[1720992844739,1.01006527,147.52,147.45,10.0]
[1720992845617,15.5203,147.51,147.43,10.0]
[1720992845831,22.60316527,147.51,147.43,10.0]
[1720992848136,1.01006527,147.52,147.44,10.0]
[1720992848336,1.01006527,147.53,147.45,1.35590908]
[1720992848843,7.08286527,147.54,147.46,10.0]
[1720992849040,7.08286527,147.54,147.47,1.35572737]
[1720992849250,7.08286527,147.54,147.48,1.35578933]
[1720992849542,7.08286527,147.54,147.49,10.0]
[1720992849543,6.0728,147.54,147.49,10.0]
[1720992849717,6.0728,147.54,147.47,55.0]
[1720992850729,6.0728,147.54,147.47,65.0]
[1720992850933,6.0728,147.54,147.47,55.0]
[1720992851248,6.4116,147.58,147.49,10.0]
[1720992851449,1.01006527,147.57,147.5,1.35558191]
[1720992851654,21.01006527,147.57,147.5,1.35558191]
[1720992853020,21.01006527,147.57,147.49,10.0]
[1720992853224,21.01006527,147.57,147.47,55.0]
[1720992853576,21.01006527,147.57,147.49,10.0]
[1720992855427,21.01006527,147.57,147.5,1.35549434]
[1720992855740,21.01006527,147.57,147.49,10.0]
[1720992857743,7.42166527,147.58,147.51,10.0]
[1720992859567,7.42166527,147.58,147.49,10.0]
[1720992859747,7.42166527,147.58,147.5,45.0]
[1720992860471,7.42166527,147.58,147.51,10.0]
[1720992861155,7.42166527,147.58,147.5,55.0]
[1720992861352,6.4116,147.58,147.51,11.35538499]
[1720992861663,6.4116,147.58,147.51,10.0]
[1720992866166,6.4116,147.58,147.53,10.0]
[1720992866477,6.4116,147.58,147.55,10.82]
[1720992867442,6.4116,147.58,147.53,10.0]
[1720992867443,7.39966527,147.62,147.56,10.82]
[1720992867645,10.82,147.61,147.57,10.82]
[1720992867876,11.83006527,147.61,147.56,10.82]
[1720992868589,7.39966527,147.62,147.57,1.35506988]
[1720992868760,7.39966527,147.62,147.57,12.17506988]
[1720992869076,7.39966527,147.62,147.57,10.82]
[1720992869245,10.82,147.61,147.57,10.82]
[1720992869446,11.83006527,147.61,147.53,20.0]
[1720992869655,11.83006527,147.61,147.57,10.82]
[1720992870077,10.82,147.61,147.57,10.82]
[1720992870569,10.82,147.61,147.55,10.0]
[1720992870752,18.21966527,147.62,147.57,10.82]
[1720992871159,18.21966527,147.62,147.55,10.0]
[1720992871160,18.21966527,147.62,147.53,20.0]
[1720992871361,18.21966527,147.62,147.57,10.82]
[1720992871952,6.3896,147.62,147.58,10.82]
[1720992875188,15.0342,147.63,147.59,10.82]
[1720992875479,25.8542,147.63,147.59,10.82]
[1720992875682,25.8542,147.63,147.54,10.0]
[1720992875979,25.8542,147.63,147.59,10.82]
[1720992876372,15.0342,147.63,147.59,10.82]
[1720992876692,16.04426527,147.63,147.59,10.82]
[1720992877061,16.04426527,147.63,147.56,10.0]
[1720992877383,26.86426527,147.63,147.59,10.82]
[1720992879871,26.86426527,147.63,147.55,45.0]
[1720992880186,26.86426527,147.63,147.59,10.82]
[1720992880767,16.04426527,147.63,147.59,10.82]
[1720992881381,26.86426527,147.63,147.58,10.82]
[1720992881881,16.04426527,147.63,147.59,10.82]
[1720992883359,6.328,147.66,147.6,10.82]
[1720992883561,11.83006527,147.65,147.6,10.82]
[1720992883761,1.01006527,147.65,147.61,10.82]
[1720992884498,11.83006527,147.65,147.56,53.28]
[1720992884790,11.83006527,147.65,147.57,55.0]
[1720992885383,11.83006527,147.64,147.56,10.0]
[1720992885583,11.83006527,147.64,147.59,10.82]
[1720992888195,11.83006527,147.64,147.6,10.82]
[1720992889664,11.83006527,147.64,147.55,10.0]
[1720992889883,11.83006527,147.64,147.54,10.0]
[1720992890088,11.83006527,147.64,147.56,10.0]
[1720992890278,11.83006527,147.64,147.59,10.82]
[1720992890475,1.01006527,147.64,147.6,10.82]
[1720992890690,1.01006527,147.64,147.57,10.0]
[1720992891002,11.83006527,147.64,147.59,10.82]
[1720992892188,1.01006527,147.64,147.59,10.82]
[1720992892372,11.83006527,147.64,147.59,10.82]
[1720992892570,10.82,147.62,147.54,10.0]
[1720992892781,1.01006527,147.64,147.54,10.0]
[1720992892782,10.82,147.63,147.58,10.82]
[1720992893296,11.83006527,147.64,147.58,10.82]
[1720992893590,10.82,147.63,147.58,10.82]
[1720992894392,1.01006527,147.62,147.58,10.82]
[1720992894594,11.83006527,147.63,147.58,10.82]
[1720992894795,11.83006527,147.63,147.54,10.0]
[1720992894985,11.83006527,147.63,147.58,10.82]
[1720992895684,1.01006527,147.62,147.58,10.82]
[1720992899392,1.01006527,147.62,147.54,10.0]
[1720992899601,1.01006527,147.62,147.58,10.82]
[1720992900402,1.01006527,147.62,147.54,10.0]
[1720992900590,1.01006527,147.62,147.58,10.82]
[1720992900984,10.82,147.61,147.53,10.0]
[1720992901184,10.82,147.59,147.53,10.0]
[1720992901488,1.01006527,147.58,147.54,10.82]
[1720992902079,10.82,147.59,147.54,10.82]
[1720992902410,1.01006527,147.58,147.54,10.82]
[1720992902990,1.01006527,147.58,147.52,10.0]
[1720992903285,11.83006527,147.58,147.54,10.82]
[1720992903490,10.82,147.58,147.52,10.0]
[1720992903706,10.82,147.58,147.54,10.82]
[1720992903906,10.82,147.58,147.52,10.0]
[1720992904106,10.82,147.58,147.54,10.82]
[1720992904610,10.82,147.58,147.52,10.0]
[1720992904816,10.82,147.58,147.54,10.82]
[1720992905315,10.82,147.58,147.52,10.0]
[1720992905505,10.82,147.59,147.54,10.82]
[1720992905712,1.01006527,147.58,147.54,10.82]
[1720992905886,1.01006527,147.58,147.52,10.0]
[1720992906308,1.01006527,147.58,147.54,10.82]
[1720992907588,11.83006527,147.58,147.54,10.82]
[1720992907816,1.01006527,147.58,147.54,10.82]
[1720992908989,1.01006527,147.61,147.55,10.82]
[1720992909190,10.82,147.59,147.55,10.82]
[1720992909505,1.01006527,147.58,147.55,10.82]
[1720992909715,1.01006527,147.58,147.52,10.0]
[1720992909716,22.84466527,147.58,147.52,10.0]
[1720992909915,22.84466527,147.58,147.54,10.82]
[1720992911088,33.66466527,147.58,147.52,10.0]
[1720992911403,33.66466527,147.58,147.54,10.82]
[1720992911809,22.84466527,147.58,147.54,10.82]
[1720992912014,33.66466527,147.58,147.54,10.82]
[1720992912217,22.84466527,147.58,147.52,10.0]
[1720992912518,22.84466527,147.58,147.54,10.82]
[1720992912691,22.84466527,147.58,147.52,10.0]
[1720992912892,22.84466527,147.58,147.54,10.82]
[1720992914727,22.84466527,147.58,147.52,10.0]
[1720992914905,22.84466527,147.58,147.54,10.82]
[1720992916222,22.59466527,147.58,147.54,10.82]
[1720992917544,10.82,147.57,147.53,10.82]
[1720992917723,0.76006527,147.56,147.52,10.82]
[1720992918033,11.58006527,147.56,147.48,10.0]
[1720992918411,11.58006527,147.56,147.51,10.82]
[1720992918632,10.82,147.55,147.48,10.0]
[1720992918939,0.76006527,147.54,147.51,10.82]
[1720992919239,10.82,147.56,147.51,10.82]
[1720992919240,0.76006527,147.55,147.51,10.82]
[1720992919818,10.82,147.56,147.51,10.82]
[1720992920036,0.76006527,147.55,147.51,10.82]
[1720992920236,0.76006527,147.56,147.52,10.82]
[1720992921129,11.58006527,147.56,147.51,10.82]
[1720992921331,0.76006527,147.56,147.52,10.82]
[1720992921840,0.76006527,147.56,147.48,10.0]
[1720992922047,11.58006527,147.56,147.48,10.0]
[1720992922244,11.58006527,147.56,147.47,32.43928755]
[1720992922431,11.58006527,147.56,147.51,10.82]
[1720992924618,11.58006527,147.56,147.47,7.03448755]
[1720992924948,11.58006527,147.56,147.51,10.82]
[1720992925135,11.58006527,147.56,147.47,7.03448755]
[1720992925136,55.82,147.55,147.47,7.03448755]
[1720992925338,11.58006527,147.54,147.47,7.03448755]
[1720992925535,11.58006527,147.54,147.49,10.82]
[1720992925941,0.76006527,147.54,147.5,10.82]
[1720992926123,45.76006527,147.54,147.5,10.82]
[1720992926318,10.82,147.52,147.44,17.03929311]
[1720992926545,0.76006527,147.51,147.48,10.82]
[1720992927054,0.76006527,147.51,147.47,10.82]
[1720992927223,0.76006527,147.51,147.44,17.03929311]
[1720992927417,0.76006527,147.51,147.47,10.82]
[1720992927935,0.76006527,147.51,147.44,17.03929311]
[1720992928147,0.76006527,147.51,147.47,10.82]
[1720992928339,0.76006527,147.51,147.43,10.0]
[1720992928523,0.76006527,147.51,147.47,10.82]
[1720992928840,11.58006527,147.51,147.47,10.82]
[1720992929049,0.76006527,147.5,147.47,10.82]
[1720992929346,11.58006527,147.5,147.42,7.03682639]
[1720992929644,11.58006527,147.5,147.4,41.3142]
[1720992929823,11.58006527,147.5,147.45,10.82]
[1720992930142,10.82,147.49,147.4,48.35164013]
[1720992930347,0.76006527,147.48,147.44,10.82]
[1720992930750,0.76006527,147.48,147.45,10.82]
[1720992931248,0.76006527,147.49,147.43,1.35627754]
[1720992931435,0.76006527,147.49,147.45,10.82]
[1720992931848,0.76006527,147.49,147.46,10.82]
[1720992932147,0.76006527,147.49,147.45,10.82]
[1720992932544,11.58006527,147.49,147.42,10.0]
[1720992932739,0.76006527,147.48,147.45,10.82]
[1720992933639,10.82,147.49,147.45,10.82]
[1720992933842,0.76006527,147.48,147.45,10.82]
[1720992935339,0.76006527,147.48,147.44,10.82]
[1720992935767,0.76006527,147.48,147.4,48.35164013]
[1720992935938,0.76006527,147.48,147.44,10.82]
[1720992936160,0.76006527,147.5,147.44,10.82]
[1720992936346,10.82,147.49,147.44,10.82]
[1720992936653,11.58006527,147.48,147.4,48.35164013]
[1720992936842,11.58006527,147.48,147.43,10.82]
[1720992937447,0.76006527,147.47,147.43,10.82]
[1720992937658,21.6918,147.51,147.43,10.82]
[1720992937659,10.82,147.48,147.43,10.82]
[1720992937865,0.76006527,147.47,147.43,10.82]
[1720992938039,10.82,147.48,147.43,10.82]
[1720992938240,0.76006527,147.47,147.44,10.82]
[1720992938440,0.76006527,147.47,147.41,1.35638049]
[1720992938653,0.76006527,147.48,147.44,10.82]
[1720992938851,0.76006527,147.48,147.4,48.35164013]
[1720992939043,0.76006527,147.48,147.44,10.82]
[1720992939357,0.76006527,147.48,147.4,48.35164013]
[1720992939566,0.76006527,147.48,147.44,10.82]
[1720992940671,0.76006527,147.48,147.4,48.35164013]
[1720992940672,11.58006527,147.48,147.43,10.82]
[1720992940967,0.76006527,147.47,147.43,10.82]
[1720992944572,11.58006527,147.47,147.43,10.82]
[1720992945671,0.76006527,147.47,147.4,17.03744013]
[1720992945877,10.82,147.48,147.43,10.82]
[1720992946174,0.76006527,147.47,147.43,10.82]
[1720992947472,0.76006527,147.47,147.44,10.82]
[1720992948063,45.76006527,147.47,147.4,7.03744013]
[1720992948268,45.76006527,147.47,147.4,10.82]
[1720992948269,10.82,147.44,147.4,10.82]
[1720992948779,10.82,147.45,147.4,10.82]
[1720992949083,0.76006527,147.44,147.4,10.82]
[1720992950282,0.76006527,147.44,147.36,10.8657517]
[1720992950458,0.76006527,147.45,147.4,10.82]
[1720992950659,11.58006527,147.45,147.37,45.0]
[1720992950980,11.58006527,147.45,147.36,10.8657517]
[1720992950981,11.58006527,147.45,147.41,10.82]
[1720992951474,11.58006527,147.45,147.4,10.82]
[1720992951674,11.58006527,147.45,147.41,10.82]
[1720992953754,0.76006527,147.45,147.41,10.82]
[1720992954385,0.76006527,147.45,147.36,10.8657517]
[1720992954680,11.58006527,147.45,147.41,10.82]
[1720992954879,11.58006527,147.45,147.36,10.8657517]
[1720992955284,11.58006527,147.45,147.41,10.82]
[1720992957483,0.76006527,147.45,147.41,10.82]
[1720992957668,20.76006527,147.5,147.41,10.82]
[1720992957864,10.82,147.46,147.41,10.82]
[1720992958063,0.76006527,147.45,147.36,0.8657517]
[1720992958277,0.76006527,147.45,147.41,10.82]
[1720992958475,10.82,147.42,147.36,0.8657517]
[1720992958667,0.76006527,147.41,147.38,10.82]
[1720992958872,0.76006527,147.41,147.36,0.8657517]
[1720992959087,0.76006527,147.41,147.39,10.82]
[1720992959586,0.76006527,147.42,147.39,10.82]
[1720992960468,10.82,147.4,147.36,11.6857517]
[1720992960663,0.76006527,147.39,147.36,11.6857517]
[1720992960971,0.76006527,147.39,147.36,0.8657517]
[1720992961166,21.4659,147.38,147.36,0.8657517]
[1720992961367,0.76006527,147.37,147.36,0.8657517]
[1720992962206,21.4659,147.38,147.36,11.6857517]
[1720992962207,15.4275,147.38,147.36,11.6857517]
[1720992962360,15.4275,147.38,147.36,0.8657517]
[1720992962775,0.76006527,147.39,147.37,10.82]
[1720992962986,0.76006527,147.41,147.38,10.82]
[1720992963290,0.76006527,147.41,147.39,10.82]
[1720992963996,0.76006527,147.41,147.38,10.82]
[1720992964213,0.76006527,147.41,147.39,10.82]
[1720992964490,16.4178,147.42,147.39,10.82]
[1720992964491,17.17786527,147.42,147.39,10.82]
[1720992965066,0.76006527,147.43,147.39,10.82]
[1720992965893,0.76006527,147.43,147.4,10.82]
[1720992966381,0.76006527,147.44,147.4,10.82]
[1720992972584,0.76006527,147.44,147.41,10.82]
[1720992974003,0.76006527,147.45,147.42,10.82]
[1720992976675,0.76006527,147.45,147.41,10.82]
[1720992976875,0.76006527,147.45,147.42,10.82]
[1720992979410,0.76006527,147.45,147.41,10.82]
[1720992980288,0.76006527,147.45,147.38,10.0]
[1720992980493,0.76006527,147.45,147.41,10.82]
[1720992981226,0.76006527,147.45,147.38,10.0]
[1720992981417,11.58006527,147.45,147.36,10.8657517]